bitfinex/quotes_BTCUSD_20251124
["timestamp","ask_amount","ask_price","bid_price","bid_amount"]
[1764018501339,7.959e-05,89205.0,89204.0,2.69024519]
[1764018501541,7.959e-05,89205.0,89204.0,0.73106311]
[1764018501742,7.959e-05,89205.0,89204.0,0.69024519]
[1764018502092,7.959e-05,89205.0,89204.0,0.29736519]
[1764018503986,7.959e-05,89205.0,89204.0,0.30736519]
[1764018504356,7.959e-05,89205.0,89204.0,0.29736519]
[1764018505559,7.959e-05,89205.0,89204.0,0.30736519]
[1764018505749,7.959e-05,89205.0,89204.0,0.30825519]
[1764018506221,7.959e-05,89205.0,89204.0,0.31825519]
[1764018506550,7.959e-05,89205.0,89204.0,0.30825519]
[1764018507000,7.959e-05,89205.0,89204.0,0.31825519]
[1764018508904,7.959e-05,89205.0,89204.0,0.30825519]
[1764018509495,7.959e-05,89205.0,89204.0,0.31825519]
[1764018509695,7.959e-05,89205.0,89204.0,0.30825519]
[1764018509894,7.959e-05,89205.0,89204.0,0.31825519]
[1764018510318,7.959e-05,89205.0,89204.0,0.30825519]
[1764018510516,7.959e-05,89205.0,89204.0,0.31825519]
[1764018510973,7.959e-05,89205.0,89204.0,0.30825519]
[1764018511296,7.959e-05,89205.0,89204.0,0.31825519]
[1764018511472,7.959e-05,89205.0,89204.0,0.30825519]
[1764018511680,0.0002427,89224.0,89223.0,0.22415744]
[1764018511874,0.0002427,89224.0,89223.0,0.32260318]
[1764018512025,0.0002427,89224.0,89223.0,0.29018744]
[1764018512669,0.0002427,89224.0,89218.0,0.2353767]
[1764018512868,0.01964,89223.0,89222.0,0.22415996]
[1764018513028,0.01964,89223.0,89216.0,0.00712]
[1764018513029,0.01120837,89219.0,89216.0,0.00712]
[1764018513375,0.01120837,89219.0,89209.0,0.01832963]
[1764018513376,0.04173862,89217.0,89209.0,0.01832963]
[1764018513569,0.01120875,89216.0,89212.0,0.01120925]
[1764018513751,0.01120875,89216.0,89211.0,0.23539567]
[1764018513956,0.01089,89217.0,89216.0,0.22417503]
[1764018514273,0.01089,89217.0,89215.0,0.22417754]
[1764018514426,0.23506362,89217.0,89211.0,0.01120938]
[1764018514772,0.22418034,89214.0,89212.0,0.001]
[1764018514934,0.22418006,89214.0,89212.0,0.001]
[1764018515117,0.01120887,89215.0,89212.0,0.001]
[1764018515523,0.22418225,89214.0,89212.0,0.001]
[1764018515726,0.24627189,89217.0,89213.0,0.23538945]
[1764018515984,0.01089,89217.0,89216.0,0.22417503]
[1764018516137,0.01089,89217.0,89216.0,0.22517503]
[1764018516569,0.01089,89217.0,89216.0,0.22417503]
[1764018517478,0.01089,89217.0,89216.0,0.22517503]
[1764018518520,0.01089,89217.0,89216.0,0.001]
[1764018518940,0.01089,89217.0,89216.0,0.22517503]
[1764018519245,0.03053,89217.0,89216.0,0.001]
[1764018519461,0.25470252,89217.0,89216.0,0.001]
[1764018519632,0.34491551,89217.0,89216.0,0.001]
[1764018520820,0.011209,89214.0,89209.0,0.22419047]
[1764018521014,0.01120875,89216.0,89211.0,0.01120938]
[1764018521015,0.23538622,89216.0,89211.0,0.01120938]
[1764018521221,0.07341299,89217.0,89216.0,0.22417503]
[1764018521451,0.09305299,89217.0,89216.0,0.22417503]
[1764018524490,0.2462474,89226.0,89216.0,0.22417503]
[1764018524491,0.0002427,89224.0,89222.0,0.22415996]
[1764018524664,0.0002427,89224.0,89223.0,0.22415744]
[1764018525867,0.08282569,89224.0,89223.0,0.22415744]
[1764018526091,0.40582569,89224.0,89223.0,0.22415744]
[1764018526872,0.38552299,89223.0,89216.0,0.22417285]
[1764018527073,0.34306,89223.0,89221.0,0.22416009]
[1764018527278,0.43561071,89222.0,89220.0,0.2241643]
[1764018527483,0.05852812,89221.0,89218.0,0.22417001]
[1764018527821,0.01842,89219.0,89217.0,0.22417188]
[1764018527998,0.0112085,89218.0,89215.0,0.22417579]
[1764018528201,0.02962837,89219.0,89216.0,0.22417333]
[1764018528401,0.02962837,89219.0,89211.0,0.22418616]
[1764018528402,0.25381026,89214.0,89211.0,0.22418616]
[1764018528601,0.25381026,89214.0,89207.0,0.01120988]
[1764018528602,0.02962912,89213.0,89209.0,0.22419022]
[1764018528827,0.25381202,89213.0,89209.0,0.22419022]
[1764018529054,0.01842,89210.0,89209.0,0.22419022]
[1764018529209,0.0296295,89210.0,89207.0,0.22419614]
[1764018529371,0.0296295,89210.0,89205.0,0.01121013]
[1764018529372,0.009,89207.0,89205.0,0.22420216]
[1764018529572,0.009,89207.0,89200.0,0.02567076]
[1764018529573,0.01842,89206.0,89202.0,0.22421021]
[1764018529771,0.01842,89206.0,89204.0,0.22420471]
[1764018529993,0.01842,89206.0,89203.0,0.22420576]
[1764018530330,0.01121025,89204.0,89197.0,0.22422132]
[1764018530531,0.01121126,89196.0,89185.0,0.01121264]
[1764018530763,0.01121164,89193.0,89190.0,0.22423938]
[1764018531036,0.01121151,89194.0,89190.0,0.22423938]
[1764018531238,0.01121113,89197.0,89193.0,0.22423183]
[1764018531387,0.02210101,89198.0,89195.0,0.22422688]
[1764018531602,0.05100101,89198.0,89195.0,0.22422688]
[1764018531954,0.01842,89196.0,89195.0,0.22422688]
[1764018533098,0.01842,89196.0,89186.0,0.01121252]
[1764018533306,0.01842,89195.0,89194.0,0.22423032]
[1764018534012,0.01842,89195.0,89184.0,0.01121277]
[1764018534013,0.01121176,89192.0,89184.0,0.01121277]
[1764018534205,0.11261071,89190.0,89187.0,0.2242475]
[1764018534700,0.38552299,89194.0,89193.0,0.22423284]
[1764018535463,0.06252299,89197.0,89194.0,0.01121151]
[1764018535662,0.06252299,89197.0,89196.0,0.2242253]
[1764018538134,0.01089,89198.0,89197.0,0.22422278]
[1764018539576,0.323,89205.0,89204.0,0.22420519]
[1764018539777,0.38552299,89205.0,89204.0,0.22420519]
[1764018540942,0.38552299,89205.0,89204.0,0.2243236]
[1764018541356,0.38552299,89205.0,89204.0,0.00011841]
[1764018541554,0.40394299,89205.0,89204.0,0.2243236]
[1764018541760,0.38552299,89205.0,89204.0,0.2243236]
[1764018542070,0.01120862,89217.0,89212.0,0.22418454]
[1764018542384,0.06252299,89216.0,89214.0,0.2241777]
[1764018542892,0.24437826,89219.0,89213.0,0.22418257]
[1764018542893,0.06252299,89214.0,89213.0,0.22418257]
[1764018543075,0.323,89218.0,89216.0,0.22417445]
[1764018543235,0.01089,89226.0,89223.0,0.22415744]
[1764018543434,0.06252299,89225.0,89223.0,0.22415744]
[1764018543770,0.01089,89226.0,89223.0,0.22415744]
[1764018544339,0.009,89235.0,89223.0,0.27158744]
[1764018544752,0.06252299,89234.0,89223.0,0.27158744]
[1764018545150,0.009,89235.0,89223.0,0.24403744]
[1764018545351,0.01089,89228.0,89223.0,0.22415744]
[1764018545683,0.01089,89228.0,89223.0,0.22515744]
[1764018547506,0.01089,89228.0,89223.0,0.24503744]
[1764018547679,0.06252299,89234.0,89223.0,0.27258744]
[1764018548289,0.06252299,89234.0,89223.0,0.24503744]
[1764018548545,0.39672948,89234.0,89223.0,0.22515744]
[1764018549070,0.01120686,89231.0,89223.0,0.22515744]
[1764018549217,0.38552299,89234.0,89223.0,0.22515744]
[1764018549422,0.12097569,89224.0,89223.0,0.001]
[1764018549831,0.44397569,89224.0,89223.0,0.001]
[1764018551020,0.06252299,89220.0,89216.0,0.22417286]
[1764018551232,0.13103071,89217.0,89215.0,0.22417522]
[1764018553746,0.0111327,89224.0,89217.0,0.01120862]
[1764018553934,0.43561071,89222.0,89221.0,0.01120812]
[1764018554349,0.323,89221.0,89220.0,0.22416393]
[1764018555684,0.11261071,89222.0,89219.0,0.22416526]
[1764018555867,0.323,89221.0,89220.0,0.22416319]
[1764018556064,0.0111327,89224.0,89221.0,0.01406]
[1764018556249,0.0111327,89224.0,89222.0,0.22415996]
[1764018556453,0.0111327,89224.0,89223.0,0.22415744]
[1764018557187,0.0002427,89224.0,89223.0,0.27084744]
[1764018558214,0.0002427,89224.0,89223.0,0.27184744]
[1764018558359,0.0002427,89224.0,89223.0,0.27084744]
[1764018558753,0.0002427,89224.0,89223.0,0.27184744]
[1764018559225,0.0002427,89224.0,89223.0,0.27996744]
[1764018560643,0.0002427,89224.0,89223.0,0.22615744]
[1764018560859,0.0002427,89224.0,89223.0,0.23327744]
[1764018562692,0.0002427,89224.0,89223.0,0.23227744]
[1764018563091,0.0002427,89224.0,89223.0,0.24983744]
[1764018563340,0.0002427,89224.0,89223.0,0.24883744]
[1764018563792,0.0002427,89224.0,89223.0,0.24983744]
[1764018563997,0.0002427,89224.0,89223.0,0.27896744]
[1764018565131,0.0002427,89224.0,89223.0,0.27184744]
[1764018565329,0.0002427,89224.0,89223.0,0.27896744]
[1764018566543,0.0002427,89224.0,89223.0,0.27796744]
[1764018566745,0.0002427,89224.0,89223.0,0.27996744]
[1764018571683,0.0002427,89224.0,89223.0,0.28996744]
[1764018571885,0.0002427,89224.0,89223.0,0.27996744]
[1764018574714,0.0002427,89224.0,89223.0,0.002]
[1764018574871,0.0002427,89224.0,89223.0,0.22615744]
[1764018575208,0.0002427,89224.0,89223.0,0.002]
[1764018575409,0.0002427,89224.0,89223.0,0.22615744]
[1764018575709,0.0002427,89224.0,89223.0,0.22515744]
[1764018576211,0.0002427,89224.0,89223.0,0.22415744]
[1764018576421,0.0002427,89224.0,89215.0,0.22417567]
[1764018576621,0.01769,89223.0,89221.0,0.22416165]
[1764018576867,0.01769,89223.0,89222.0,0.22415996]
[1764018577079,0.0002427,89224.0,89223.0,0.22415744]
[1764018578212,0.0002427,89224.0,89223.0,0.22515744]
[1764018578411,0.0002427,89224.0,89223.0,0.001]
[1764018578412,0.33206062,89224.0,89223.0,0.001]
[1764018578622,0.65506062,89224.0,89223.0,0.001]
[1764018578840,0.38576569,89224.0,89223.0,0.22515744]
[1764018579055,0.38576569,89224.0,89223.0,0.001]
[1764018579268,0.3232427,89224.0,89223.0,0.22515744]
[1764018579696,0.3232427,89224.0,89223.0,0.001]
[1764018579896,0.3232427,89224.0,89223.0,0.22515744]
[1764018580916,0.3232427,89224.0,89223.0,0.24271744]
[1764018581119,0.3232427,89224.0,89223.0,0.22515744]
[1764018584604,0.32213643,89224.0,89223.0,6.935e-05]
[1764018585166,0.32213643,89224.0,89223.0,0.22422679]
[1764018585365,0.32213643,89224.0,89223.0,6.935e-05]
[1764018585684,0.43474714,89224.0,89223.0,0.22422679]
[1764018585894,0.67611207,89224.0,89223.0,6.935e-05]
[1764018586097,0.54629136,89224.0,89223.0,6.935e-05]
[1764018586487,0.70177207,89224.0,89223.0,6.935e-05]
[1764018586710,0.67611207,89224.0,89223.0,6.935e-05]
[1764018587580,0.76429506,89224.0,89223.0,6.935e-05]
[1764018587786,0.54014013,89224.0,89223.0,6.935e-05]
[1764018588005,0.88663637,89224.0,89223.0,6.935e-05]
[1764018588421,0.54726013,89224.0,89223.0,6.935e-05]
[1764018588817,0.54826013,89224.0,89223.0,6.935e-05]
[1764018589022,0.6208883,89223.0,89217.0,0.23537874]
[1764018589227,0.06252299,89219.0,89218.0,0.0112085]
[1764018589394,0.38552299,89218.0,89214.0,0.23538832]
[1764018589558,0.40301299,89218.0,89215.0,0.01120887]
[1764018589761,0.40301299,89218.0,89216.0,0.22417389]
[1764018589969,0.39408299,89217.0,89216.0,0.22417389]
[1764018590169,0.39408299,89217.0,89215.0,0.01120887]
[1764018590349,0.38552299,89216.0,89215.0,0.01120887]
[1764018591216,0.00856,89217.0,89216.0,0.22417503]
[1764018591448,0.00856,89217.0,89215.0,0.23538578]
[1764018592024,0.01749,89216.0,89215.0,0.23538578]
[1764018592235,0.04271,89216.0,89215.0,0.23538578]
[1764018592679,0.42823299,89216.0,89215.0,0.23538578]
[1764018592888,0.40301299,89216.0,89215.0,0.23538578]
[1764018593082,0.40301299,89216.0,89215.0,0.22417691]
[1764018594102,0.323,89215.0,89213.0,0.2241773]
[1764018594309,0.01749,89214.0,89213.0,0.2241773]
[1764018595303,0.04484879,90395.0,89213.0,0.2241773]
[1764018595304,0.323,89221.0,89218.0,0.0112085]
[1764018595524,0.323,89221.0,89217.0,0.01120862]
[1764018595525,0.06252299,89220.0,89217.0,0.01120862]
[1764018595752,0.06252299,89220.0,89219.0,0.22416749]
[1764018596169,0.323,89221.0,89220.0,0.22416498]
[1764018596406,0.009,89231.0,89230.0,0.22413986]
[1764018596621,0.06252299,89228.0,89224.0,0.01120774]
[1764018596871,0.06252299,89228.0,89227.0,0.22414739]
[1764018597244,0.08001299,89228.0,89227.0,0.22414739]
[1764018597999,0.06252299,89226.0,89220.0,0.23537188]
[1764018598200,0.323,89223.0,89216.0,0.01120875]
[1764018598385,0.33420787,89223.0,89219.0,0.22416749]
[1764018598591,0.01120799,89222.0,89220.0,0.22416442]
[1764018598786,0.02605,89220.0,89219.0,0.23537586]
[1764018599524,0.00856,89220.0,89219.0,0.23537586]
[1764018601795,0.06252299,89219.0,89215.0,0.22417595]
[1764018602000,0.08001299,89219.0,89218.0,0.22417001]
[1764018602273,0.06252299,89219.0,89218.0,0.22417001]
[1764018602439,0.08001299,89219.0,89218.0,0.22417001]
[1764018602856,0.10523299,89219.0,89218.0,0.22417001]
[1764018603053,0.08001299,89219.0,89218.0,0.22417001]
[1764018606216,0.1264621,89219.0,89191.0,0.44847561]
[1764018606385,0.02514,89205.0,89204.0,0.2243236]
[1764018607005,0.00765,89205.0,89204.0,0.2243236]
[1764018607188,0.05036,89205.0,89204.0,0.00011841]
[1764018607395,0.11288299,89205.0,89204.0,0.00011841]
[1764018608622,0.11288299,89205.0,89204.0,0.00111841]
[1764018608926,0.11288299,89205.0,89204.0,0.00011841]
[1764018609934,0.43588299,89205.0,89204.0,0.00011841]
[1764018610232,2.43588299,89205.0,89194.0,0.00138199]
[1764018610458,0.5246237,89195.0,89194.0,0.00138199]
[1764018610667,0.5317437,89195.0,89194.0,0.00138199]
[1764018610797,0.65597532,89195.0,89194.0,0.00138199]
[1764018611006,0.67698607,89195.0,89194.0,0.00138199]
[1764018611227,0.65597532,89195.0,89194.0,0.00138199]
[1764018611717,0.65697532,89195.0,89194.0,0.00138199]
[1764018612311,0.66838998,89195.0,89194.0,0.00138199]
[1764018612549,0.56812836,89195.0,89194.0,0.00138199]
[1764018613737,0.56912836,89195.0,89194.0,0.00138199]
[1764018613934,0.5505937,89195.0,89194.0,0.00138199]
[1764018614133,0.5577137,89195.0,89194.0,0.00138199]
[1764018614428,0.5505937,89195.0,89194.0,0.00138199]
[1764018614628,0.5577137,89195.0,89194.0,0.00138199]
[1764018614876,0.56879711,89195.0,89194.0,0.00138199]
[1764018615480,0.5577137,89195.0,89194.0,0.00138199]
[1764018616078,0.78194151,89195.0,89194.0,0.00138199]
[1764018616724,0.8156575,89195.0,89194.0,0.00138199]
[1764018617431,0.83458192,89195.0,89194.0,0.00138199]
[1764018618414,0.83458192,89195.0,89151.0,0.01121692]
[1764018618415,0.01121616,89157.0,89151.0,0.01121692]
[1764018618611,0.01199,89152.0,89151.0,0.22433848]
[1764018618777,0.02968,89152.0,89151.0,0.22433848]
[1764018618985,0.02968,89152.0,89148.0,0.22434514]
[1764018619180,0.02968,89152.0,89151.0,0.00130583]
[1764018619634,0.0297463,89152.0,89151.0,0.00130583]
[1764018619835,0.43923929,89152.0,89151.0,0.00130583]
[1764018620138,0.43923929,89152.0,89151.0,0.00230583]
[1764018620718,0.43923929,89152.0,89151.0,0.00130583]
[1764018621399,0.66357525,89152.0,89151.0,0.00130583]
[1764018623686,0.43923929,89152.0,89151.0,0.00130583]
[1764018623854,0.09226929,89152.0,89151.0,0.22564431]
[1764018624055,0.09226929,89152.0,89151.0,0.00130583]
[1764018624246,0.39757929,89152.0,89151.0,0.00130583]
[1764018625344,0.07457929,89152.0,89151.0,0.00130583]
[1764018625548,0.66357525,89152.0,89151.0,0.00130583]
[1764018628245,0.71286943,89152.0,89151.0,0.00130583]
[1764018628989,0.68444002,89152.0,89151.0,0.00130583]
[1764018629545,0.06252299,89130.0,89128.0,0.22439561]
[1764018629723,0.06252299,89128.0,89127.0,0.22439889]
[1764018629942,0.06252299,89128.0,89125.0,0.01122019]
[1764018630145,0.06252299,89128.0,89127.0,0.22439889]
[1764018630386,0.06252299,89128.0,89125.0,0.01122019]
[1764018630387,0.08021299,89126.0,89125.0,0.22440392]
[1764018631202,0.06252299,89126.0,89125.0,0.22440392]
[1764018632153,0.06252299,89125.0,89124.0,0.22440644]
[1764018632592,0.06252299,89128.0,89125.0,0.01122019]
[1764018632771,0.06252299,89126.0,89125.0,0.01122019]
[1764018632965,0.06252299,89123.0,89121.0,0.23739363]
[1764018633172,0.01122019,89125.0,89122.0,0.01122057]
[1764018633403,0.01122019,89125.0,89122.0,0.23563205]
[1764018633826,0.01122019,89125.0,89123.0,0.22440831]
[1764018634005,0.28692456,89126.0,89123.0,0.22440831]
[1764018634157,0.06252299,89124.0,89123.0,0.22440831]
[1764018634359,0.08339281,89124.0,89123.0,0.22440831]
[1764018634969,0.08339281,89124.0,89123.0,0.24232831]
[1764018635370,0.02086982,89124.0,89123.0,0.26924831]
[1764018635611,0.02086982,89124.0,89123.0,0.22440831]
[1764018635855,0.02086982,89124.0,89123.0,0.22525909]
[1764018635969,0.02086982,89124.0,89123.0,0.24769998]
[1764018636177,0.02086982,89124.0,89123.0,0.22525909]
[1764018636384,0.02086982,89124.0,89123.0,0.22625909]
[1764018637314,0.02086982,89124.0,89123.0,0.24869998]
[1764018639260,0.02086982,89124.0,89123.0,0.22625909]
[1764018639426,0.02086982,89124.0,89123.0,0.24869998]
[1764018639823,0.02086982,89124.0,89123.0,0.22625909]
[1764018640213,0.02086982,89124.0,89123.0,0.24869998]
[1764018640428,0.02086982,89124.0,89123.0,0.26661998]
[1764018640668,0.02086982,89124.0,89123.0,0.27109909]
[1764018642071,0.02086982,89124.0,89123.0,0.22625909]
[1764018642275,0.02086982,89124.0,89123.0,0.00185078]
[1764018642604,0.02086982,89124.0,89123.0,0.22625974]
[1764018642756,0.02086982,89124.0,89123.0,0.24870063]
[1764018643394,0.02086982,89124.0,89123.0,0.26662063]
[1764018643595,0.02086982,89124.0,89123.0,0.24417974]
[1764018644158,0.02086982,89124.0,89123.0,0.27024974]
[1764018645988,0.02086982,89124.0,89123.0,0.26924974]
[1764018646413,0.02086982,89124.0,89123.0,0.27024974]
[1764018646618,0.02086982,89124.0,89123.0,0.27124974]
[1764018648297,0.02086982,89124.0,89123.0,0.28124974]
[1764018648450,0.02086982,89124.0,89123.0,0.27124974]
[1764018648649,0.06252299,89144.0,89143.0,0.22435861]
[1764018648856,0.08350765,89144.0,89143.0,0.22435861]
[1764018649057,0.08350765,89144.0,89143.0,0.22460163]
[1764018649282,0.08350765,89144.0,89143.0,0.26761163]
[1764018649283,0.02098466,89144.0,89143.0,0.26761163]
[1764018650070,0.01039,89171.0,89170.0,0.22429068]
[1764018650270,0.03137239,89171.0,89170.0,0.22429068]
[1764018650853,0.02098239,89171.0,89170.0,0.24136068]
[1764018651265,0.02098239,89171.0,89170.0,0.24144027]
[1764018651483,0.02098239,89171.0,89170.0,0.26738027]
[1764018654773,0.02098239,89171.0,89170.0,0.24144027]
[1764018654990,0.06252299,89177.0,89176.0,0.22427558]
[1764018655185,0.08346604,89177.0,89176.0,0.22427558]
[1764018655387,0.02094305,89177.0,89176.0,0.26728558]
[1764018656616,0.00135229,89180.0,89179.0,0.22426804]
[1764018656823,0.0222748,89180.0,89179.0,0.24133804]
[1764018657087,0.0222748,89180.0,89179.0,0.26727804]
[1764018657306,0.00135229,89180.0,89179.0,0.26727804]
[1764018658892,0.00135229,89180.0,89179.0,0.26827804]
[1764018662892,0.00121765,89180.0,89179.0,0.26827804]
[1764018663836,0.00121765,89180.0,89179.0,0.26727804]
[1764018664217,0.00121765,89180.0,89179.0,0.27727804]
[1764018664439,0.00121765,89180.0,89179.0,0.26727804]
[1764018665164,0.00121765,89180.0,89179.0,0.27827804]
[1764018665371,0.00121765,89180.0,89179.0,0.26927804]
[1764018665546,0.00121765,89180.0,89179.0,0.27827804]
[1764018665776,0.00121765,89180.0,89179.0,0.26827804]
[1764018665929,0.00121765,89180.0,89179.0,0.26927804]
[1764018666354,0.00121765,89180.0,89179.0,0.27639804]
[1764018666996,0.00121765,89180.0,89179.0,0.26927804]
[1764018667201,0.00121765,89180.0,89179.0,0.27639804]
[1764018672164,0.00121765,89180.0,89179.0,0.002]
[1764018672306,0.00121765,89180.0,89179.0,0.23338804]
[1764018672506,0.00121765,89180.0,89179.0,0.22626804]
[1764018672708,0.28800617,89180.0,89179.0,0.002]
[1764018672920,0.28800617,89180.0,89179.0,0.001]
[1764018673118,0.23548974,89176.0,89173.0,0.22428071]
[1764018673322,0.01121377,89176.0,89174.0,0.00712]
[1764018673674,0.0112139,89175.0,89174.0,0.00712]
[1764018673874,0.235492,89175.0,89174.0,0.00712]
[1764018674468,0.01044,89179.0,89174.0,0.00712]
[1764018674652,0.01044,89179.0,89175.0,0.0112139]
[1764018674855,0.01121365,89177.0,89175.0,0.22427797]
[1764018675051,0.23548676,89177.0,89175.0,0.22427797]
[1764018675256,0.23548676,89177.0,89174.0,0.2324006]
[1764018675434,0.23548676,89177.0,89174.0,0.2314006]
[1764018676010,0.22428816,89171.0,89170.0,7.959e-05]
[1764018676213,0.24049816,89171.0,89170.0,7.959e-05]
[1764018676433,0.22428816,89171.0,89170.0,7.959e-05]
[1764018676707,0.28681115,89171.0,89170.0,7.959e-05]
[1764018676869,0.30302115,89171.0,89170.0,7.959e-05]
[1764018677207,0.28681115,89171.0,89170.0,7.959e-05]
[1764018678281,0.28681115,89171.0,89170.0,0.00107959]
[1764018678658,0.06252299,89171.0,89170.0,0.00107959]
[1764018678866,0.06252299,89171.0,89170.0,0.22537027]
[1764018679079,0.06252299,89171.0,89170.0,0.00107959]
[1764018679596,0.06252299,89171.0,89170.0,0.22537027]
[1764018680167,0.06252299,89171.0,89170.0,0.00107959]
[1764018680403,0.06252299,89171.0,89170.0,0.22537027]
[1764018680616,0.28681115,89171.0,89170.0,0.00107959]
[1764018680968,0.06252299,89171.0,89170.0,0.22537027]
[1764018681172,0.06252299,89171.0,89170.0,0.00107959]
[1764018681657,0.28681115,89171.0,89170.0,0.00107959]
[1764018681789,0.06252299,89171.0,89170.0,0.00107959]
[1764018682417,0.06252299,89171.0,89170.0,0.22537027]
[1764018683536,0.06252299,89176.0,89175.0,0.2242781]
[1764018683914,0.06252299,89176.0,89172.0,0.23549993]
[1764018684114,0.06252299,89176.0,89174.0,0.22428021]
[1764018684484,0.06252299,89176.0,89175.0,0.2242781]
[1764018684705,0.06252299,89176.0,89174.0,0.22428021]
[1764018684914,0.06252299,89176.0,89175.0,0.2242781]
[1764018686931,0.06252299,89176.0,89175.0,0.2217611]
[1764018687791,0.06252299,89176.0,89174.0,0.22428021]
[1764018688002,0.06252299,89176.0,89175.0,0.2242781]
[1764018688397,0.06252299,89176.0,89174.0,0.22428021]
[1764018688800,0.06252299,89176.0,89175.0,0.2242781]
[1764018689210,0.28681115,89171.0,89169.0,0.00712]
[1764018690097,0.30302115,89171.0,89169.0,0.00712]
[1764018690621,0.30302115,89171.0,89170.0,0.00107959]
[1764018690822,0.32385115,89171.0,89170.0,0.00107959]
[1764018691458,0.30302115,89171.0,89170.0,0.00107959]
[1764018692478,0.32385115,89171.0,89170.0,0.00107959]
[1764018692901,0.32385115,89171.0,89170.0,7.959e-05]
[1764018695159,0.73323903,89171.0,89170.0,7.959e-05]
[1764018695410,0.75423773,89171.0,89170.0,7.959e-05]
[1764018695985,0.66784985,89171.0,89170.0,7.959e-05]
[1764018696389,0.66884985,89171.0,89170.0,7.959e-05]
[1764018698220,0.38652299,89171.0,89170.0,7.959e-05]
[1764018698666,0.06352299,89171.0,89170.0,0.22437027]
[1764018698871,0.06352299,89171.0,89170.0,7.959e-05]
[1764018699215,0.28781115,89171.0,89170.0,7.959e-05]
[1764018699412,0.06252299,89171.0,89170.0,7.959e-05]
[1764018699961,0.28681115,89171.0,89170.0,7.959e-05]
[1764018701576,0.06252299,89171.0,89170.0,0.22437027]
[1764018702482,0.06252299,89171.0,89170.0,7.959e-05]
[1764018703072,0.06252299,89171.0,89170.0,0.22437027]
[1764018703284,0.06252299,89171.0,89170.0,0.24143027]
[1764018703884,0.323,89175.0,89174.0,0.22428061]
[1764018704286,0.33344,89179.0,89175.0,0.235492]
[1764018704496,0.39596299,89179.0,89178.0,0.22427056]
[1764018704891,0.39596299,89179.0,89174.0,0.22428021]
[1764018704892,0.06252299,89178.0,89174.0,0.22428021]
[1764018705110,0.39673676,89176.0,89170.0,0.01129412]
[1764018705313,0.38552299,89176.0,89175.0,0.2242781]
[1764018706041,0.38552299,89176.0,89170.0,7.959e-05]
[1764018706042,0.41263676,89176.0,89170.0,7.959e-05]
[1764018706185,0.41263676,89176.0,89171.0,0.22428816]
[1764018706186,0.06252299,89172.0,89171.0,0.22428816]
[1764018706591,0.06252299,89174.0,89172.0,0.22428317]
[1764018706788,0.06252299,89174.0,89173.0,0.22428313]
[1764018706985,0.06252299,89177.0,89171.0,0.0112144]
[1764018707193,0.06252299,89175.0,89174.0,0.22428005]
[1764018707427,0.06252299,89175.0,89173.0,0.22428313]
[1764018708052,0.06252299,89173.0,89170.0,7.959e-05]
[1764018708234,0.22428781,89172.0,89170.0,0.22428991]
[1764018708431,0.01121453,89170.0,89166.0,0.22429848]
[1764018708630,0.23550877,89169.0,89166.0,0.00011858]
[1764018708814,0.23550877,89169.0,89166.0,0.22441744]
[1764018709015,0.01121465,89169.0,89167.0,0.224298]
[1764018709220,0.2355071,89170.0,89167.0,0.224298]
[1764018709658,0.22428847,89171.0,89168.0,0.22429376]
[1764018709918,0.06252299,89177.0,89171.0,0.0112144]
[1764018710144,0.07373664,89177.0,89173.0,0.23549519]
[1764018710347,0.06252299,89175.0,89174.0,0.22428001]
[1764018710486,0.06252299,89175.0,89173.0,0.22428258]
[1764018710970,0.06252299,89173.0,89171.0,0.22428319]
[1764018712669,0.06252299,89173.0,89168.0,0.01121478]
[1764018712670,0.06252299,89173.0,89172.0,0.22428565]
[1764018713731,0.06252299,89174.0,89172.0,0.22428565]
[1764018713878,0.2868105,89172.0,89166.0,0.00011858]
[1764018714077,0.06252299,89172.0,89171.0,0.22428816]
[1764018714944,0.0112144,89171.0,89169.0,0.22429261]
[1764018715302,0.06252299,89168.0,89166.0,0.00011858]
[1764018715528,0.31048121,89167.0,89166.0,0.00011858]
[1764018715914,0.32950121,89167.0,89166.0,0.00011858]
[1764018719903,0.31048121,89167.0,89166.0,0.00011858]
[1764018720108,0.08618299,89167.0,89166.0,0.00011858]
[1764018720463,0.31048121,89167.0,89166.0,0.00011858]
[1764018721370,0.08618299,89167.0,89166.0,0.22441932]
[1764018721794,0.07111299,89167.0,89166.0,0.22441932]
[1764018721994,0.323,89177.0,89176.0,0.22427558]
[1764018722199,0.38552299,89177.0,89176.0,0.22427558]
[1764018723264,0.06252299,89177.0,89176.0,0.22427558]
[1764018723578,0.06252299,89176.0,89170.0,0.01121453]
[1764018723810,0.06252299,89176.0,89175.0,0.2242781]
[1764018724003,0.38552299,89177.0,89175.0,0.2242781]
[1764018724369,0.38552299,89177.0,89176.0,0.22427558]
[1764018725089,0.06252299,89177.0,89176.0,0.22427558]
[1764018725297,0.06252299,89178.0,89176.0,0.26492336]
[1764018725631,0.06252299,89178.0,89177.0,0.23553307]
[1764018725770,0.06252299,89178.0,89177.0,0.25128307]
[1764018725971,0.06252299,89178.0,89177.0,0.23553307]
[1764018726171,0.06374064,89180.0,89179.0,0.22426804]
[1764018727524,0.00121765,89180.0,89179.0,0.26491804]
[1764018732547,0.00121765,89180.0,89179.0,0.00812]
[1764018732706,0.00121765,89180.0,89179.0,0.23238804]
[1764018733925,0.00121765,89180.0,89179.0,0.00812]
[1764018734385,0.00121765,89180.0,89179.0,0.001]
[1764018734688,0.30440617,89180.0,89179.0,0.001]
[1764018735047,0.32342617,89180.0,89179.0,0.001]
[1764018735681,0.06252299,89179.0,89175.0,0.2242781]
[1764018735890,0.06252299,89176.0,89169.0,0.02344465]
[1764018736102,0.06252299,89172.0,89167.0,0.01121491]
[1764018736256,0.06252299,89172.0,89164.0,0.01121528]
[1764018736458,0.23550356,89171.0,89166.0,0.22441696]
[1764018736670,0.02499,89167.0,89166.0,0.00011858]
[1764018737957,0.10653299,89167.0,89166.0,0.00011858]
[1764018738504,0.10653299,89167.0,89166.0,0.00111858]
[1764018738904,0.10653299,89167.0,89166.0,0.00011858]
[1764018740669,0.08751299,89167.0,89166.0,0.00011858]
[1764018740820,0.10653299,89167.0,89166.0,0.00011858]
[1764018742771,0.42953299,89167.0,89166.0,0.00011858]
[1764018742981,0.41051299,89167.0,89166.0,0.00011858]
[1764018743182,0.41051299,89167.0,89166.0,0.22441932]
[1764018744054,0.39411299,89167.0,89166.0,0.22441932]
[1764018744457,0.39411299,89167.0,89166.0,0.00011858]
[1764018744861,0.42953299,89167.0,89166.0,0.00011858]
[1764018745266,0.46325603,89167.0,89166.0,0.00011858]
[1764018747075,0.41924603,89167.0,89166.0,0.01664858]
[1764018747272,0.01121352,89178.0,89166.0,0.00011858]
[1764018747544,0.06252299,89173.0,89171.0,0.22428643]
[1764018747746,0.00121765,89180.0,89178.0,0.22427036]
[1764018747974,0.00121765,89180.0,89173.0,0.01121415]
[1764018748169,0.06252299,89178.0,89176.0,0.22427341]
[1764018748335,0.06252299,89178.0,89175.0,0.22427526]
[1764018748526,0.07373639,89179.0,89175.0,0.22427662]
[1764018748701,0.06252299,89177.0,89175.0,0.23549052]
[1764018748898,0.06252299,89177.0,89172.0,0.2365151]